[Event "Betsys MČR v online bleskovém šachu 2021"]
[Site "Chess.com"]
[Date "2021.04.17"]
[Round "13"]
[White "TCTCGTGCTATG"]
[Black "Simago"]
[Result "0-1"]
[WhiteElo "1935"]
[BlackElo "2106"]
[TimeControl "180+1"]
[EndTime "11:10:45 PDT"]
[Termination "Uživatel Simago zvítězil matem"]

1. e4 {[%clk 0:03:00.9]} 1... c5 {[%clk 0:02:59.2]} 2. Nf3 {[%clk 0:03:00.7]}
2... g6 {[%clk 0:02:59.3]} 3. d4 {[%clk 0:03:01.1]} 3... cxd4 {[%clk 0:02:59.7]}
4. Nxd4 {[%clk 0:03:00.7]} 4... Bg7 {[%clk 0:02:59.4]} 5. Nc3 {[%clk 0:03:00.5]}
5... Nc6 {[%clk 0:02:59.6]} 6. Be3 {[%clk 0:03:00]} 6... Nf6 {[%clk 0:02:55.3]}
7. Bc4 {[%clk 0:02:59]} 7... O-O {[%clk 0:02:53.8]} 8. f3 {[%clk 0:02:58.1]}
8... Qb6 {[%clk 0:02:38.9]} 9. Bb3 {[%clk 0:02:53.6]} 9... Nxe4 {[%clk
0:02:01.4]} 10. Nd5 {[%clk 0:01:35.8]} 10... Qa5+ {[%clk 0:01:51.6]} 11. c3
{[%clk 0:01:32.4]} 11... Nf6 {[%clk 0:01:10.6]} 12. Nxc6 {[%clk 0:01:17.6]}
12... dxc6 {[%clk 0:01:08.1]} 13. Nxe7+ {[%clk 0:01:17]} 13... Kh8 {[%clk
0:01:05.9]} 14. Nxc8 {[%clk 0:01:16.5]} 14... Raxc8 {[%clk 0:01:03.2]} 15. O-O
{[%clk 0:01:15.8]} 15... Rcd8 {[%clk 0:00:52.7]} 16. Qc2 {[%clk 0:01:15.4]}
16... Nd5 {[%clk 0:00:49]} 17. Bf2 {[%clk 0:01:14.5]} 17... Rfe8 {[%clk
0:00:45.6]} 18. Rfe1 {[%clk 0:01:13.5]} 18... Kg8 {[%clk 0:00:26.7]} 19. Rad1
{[%clk 0:01:01.7]} 19... Nf4 {[%clk 0:00:22.5]} 20. Rxd8 {[%clk 0:00:55.8]}
20... Rxd8 {[%clk 0:00:20.8]} 21. Re7 {[%clk 0:00:50.1]} 21... Qg5 {[%clk
0:00:08.3]} 22. Bc5 {[%clk 0:00:40.1]} 22... Rd1+ {[%clk 0:00:05.5]} 23. Kf2
{[%clk 0:00:33]} 23... Qxg2+ {[%clk 0:00:05.5]} 24. Ke3 {[%clk 0:00:27.6]} 24...
Re1+ {[%clk 0:00:04.2]} 25. Kxf4 {[%clk 0:00:15.8]} 25... Bh6# {[%clk
0:00:03.7]} 0-1

[Event "Betsys MČR v online bleskovém šachu 2021"]
[Site "Chess.com"]
[Date "2021.04.17"]
[Round "13"]
[White "xnepom"]
[Black "machonza"]
[Result "1/2-1/2"]
[WhiteElo "2247"]
[BlackElo "2045"]
[TimeControl "180+1"]
[EndTime "11:10:47 PDT"]
[Termination "Remíza opakováním pozice"]

1. e4 {[%clk 0:03:00.9]} 1... c5 {[%clk 0:02:56.8]} 2. c3 {[%clk 0:03:01]} 2...
Nc6 {[%clk 0:02:54.4]} 3. d4 {[%clk 0:03:00.7]} 3... cxd4 {[%clk 0:02:54.2]} 4.
cxd4 {[%clk 0:03:01.4]} 4... d5 {[%clk 0:02:54.5]} 5. exd5 {[%clk 0:03:01.7]}
5... Qxd5 {[%clk 0:02:53.7]} 6. Nf3 {[%clk 0:03:02.4]} 6... Bg4 {[%clk
0:02:51.7]} 7. Be2 {[%clk 0:03:02.7]} 7... e6 {[%clk 0:02:50.7]} 8. Nc3 {[%clk
0:03:02.5]} 8... Qa5 {[%clk 0:02:50.1]} 9. d5 {[%clk 0:02:52.6]} 9... exd5
{[%clk 0:02:48.6]} 10. Qxd5 {[%clk 0:02:52.6]} 10... Bb4 {[%clk 0:02:42.3]} 11.
Qxa5 {[%clk 0:02:31]} 11... Bxa5 {[%clk 0:02:41.1]} 12. O-O {[%clk 0:02:31.3]}
12... Nf6 {[%clk 0:02:37.4]} 13. Bg5 {[%clk 0:02:27.4]} 13... Bxc3 {[%clk
0:02:27.6]} 14. bxc3 {[%clk 0:02:27.6]} 14... Ne4 {[%clk 0:02:27.2]} 15. Be3
{[%clk 0:01:45.6]} 15... Nxc3 {[%clk 0:02:25.4]} 16. Bc4 {[%clk 0:01:45.8]}
16... Bxf3 {[%clk 0:02:11.8]} 17. gxf3 {[%clk 0:01:44.9]} 17... Ne5 {[%clk
0:02:04.9]} 18. Rac1 {[%clk 0:01:32.9]} 18... Nxc4 {[%clk 0:02:02]} 19. Rxc3
{[%clk 0:01:33]} 19... Ne5 {[%clk 0:01:58.9]} 20. Rc7 {[%clk 0:00:54.7]} 20...
Nxf3+ {[%clk 0:01:32.3]} 21. Kg2 {[%clk 0:00:54.5]} 21... Nh4+ {[%clk
0:01:31.4]} 22. Kh3 {[%clk 0:00:53]} 22... Nf5 {[%clk 0:01:29.2]} 23. Bc5 {[%clk
0:00:48.7]} 23... b6 {[%clk 0:01:06.8]} 24. Re1+ {[%clk 0:00:34.6]} 24... Kd8
{[%clk 0:01:05.3]} 25. Rxf7 {[%clk 0:00:34.5]} 25... g6 {[%clk 0:01:04.4]} 26.
Ba3 {[%clk 0:00:24]} 26... h5 {[%clk 0:00:52.2]} 27. Rd1+ {[%clk 0:00:22.7]}
27... Ke8 {[%clk 0:00:47.2]} 28. Rb7 {[%clk 0:00:13.3]} 28... Rg8 {[%clk
0:00:42.9]} 29. Re1+ {[%clk 0:00:12.1]} 29... Kd8 {[%clk 0:00:41.5]} 30. Rd1+
{[%clk 0:00:12.2]} 30... Ke8 {[%clk 0:00:32.6]} 31. Re1+ {[%clk 0:00:12.1]}
31... Kd8 {[%clk 0:00:32]} 32. Rd1+ {[%clk 0:00:12.7]} 32... Ke8 {[%clk
0:00:19.8]} 1/2-1/2

[Event "Betsys MČR v online bleskovém šachu 2021"]
[Site "Chess.com"]
[Date "2021.04.17"]
[Round "13"]
[White "MrNikdo"]
[Black "prosinec"]
[Result "1-0"]
[WhiteElo "2056"]
[BlackElo "1779"]
[TimeControl "180+1"]
[EndTime "11:10:52 PDT"]
[Termination "Uživatel MrNikdo zvítězil po vzdání soupeře"]

1. e4 {[%clk 0:03:00.9]} 1... d6 {[%clk 0:02:59.2]} 2. d4 {[%clk 0:03:00.6]}
2... Nf6 {[%clk 0:02:58.9]} 3. Nc3 {[%clk 0:02:59.7]} 3... c6 {[%clk 0:02:58.1]}
4. Bg5 {[%clk 0:02:57.5]} 4... h6 {[%clk 0:02:56.3]} 5. Bf4 {[%clk 0:02:52.9]}
5... Qa5 {[%clk 0:02:46]} 6. e5 {[%clk 0:02:39.2]} 6... Nd5 {[%clk 0:02:27.6]}
7. Bd2 {[%clk 0:02:38.8]} 7... Nxc3 {[%clk 0:02:22.9]} 8. Bxc3 {[%clk
0:02:38.2]} 8... Qc7 {[%clk 0:02:19]} 9. Nf3 {[%clk 0:02:37.8]} 9... Bg4 {[%clk
0:02:16.4]} 10. h3 {[%clk 0:02:37.4]} 10... Bxf3 {[%clk 0:02:15.8]} 11. Qxf3
{[%clk 0:02:38.3]} 11... e6 {[%clk 0:02:05.5]} 12. exd6 {[%clk 0:02:09.4]} 12...
Qxd6 {[%clk 0:01:54.9]} 13. O-O-O {[%clk 0:02:05.2]} 13... Qd5 {[%clk
0:01:49.1]} 14. Qxd5 {[%clk 0:01:50.9]} 14... cxd5 {[%clk 0:01:50]} 15. Bb5+
{[%clk 0:01:49.5]} 15... Nc6 {[%clk 0:01:49.7]} 16. f4 {[%clk 0:01:41.2]} 16...
Bd6 {[%clk 0:01:42.2]} 17. f5 {[%clk 0:01:38.7]} 17... exf5 {[%clk 0:01:37]} 18.
Rhf1 {[%clk 0:01:23.8]} 18... g6 {[%clk 0:01:32.1]} 19. Rde1+ {[%clk 0:01:21.6]}
19... Kd7 {[%clk 0:01:30.6]} 20. g4 {[%clk 0:01:13.7]} 20... f4 {[%clk
0:01:20.5]} 21. Ba4 {[%clk 0:01:00.1]} 21... Rae8 {[%clk 0:01:13]} 22. Bb3
{[%clk 0:00:58.6]} 22... Ne7 {[%clk 0:01:05.1]} 23. Re2 {[%clk 0:00:25]} 23...
b5 {[%clk 0:00:51.2]} 24. Rfe1 {[%clk 0:00:21.4]} 24... a6 {[%clk 0:00:34.5]}
25. Kd1 {[%clk 0:00:20.5]} 25... Ra8 {[%clk 0:00:23.3]} 26. Ba5 {[%clk
0:00:18.9]} 26... Rhc8 {[%clk 0:00:19.4]} 27. c3 {[%clk 0:00:18.1]} 27... Rab8
{[%clk 0:00:18.2]} 28. Kd2 {[%clk 0:00:17.9]} 28... b4 {[%clk 0:00:17.8]} 29.
Bxb4 {[%clk 0:00:17.1]} 29... Bxb4 {[%clk 0:00:18.7]} 30. cxb4 {[%clk
0:00:17.4]} 30... Rxb4 {[%clk 0:00:19.5]} 31. Rxe7+ {[%clk 0:00:17.2]} 1-0

[Event "Betsys MČR v online bleskovém šachu 2021"]
[Site "Chess.com"]
[Date "2021.04.17"]
[Round "13"]
[White "CZMaster666"]
[Black "jsebesta"]
[Result "1-0"]
[WhiteElo "1920"]
[BlackElo "1661"]
[TimeControl "180+1"]
[EndTime "11:10:52 PDT"]
[Termination "Uživatel CZMaster666 zvítězil matem"]

1. e4 {[%clk 0:02:56.9]} 1... a6 {[%clk 0:02:56.8]} 2. d4 {[%clk 0:02:52.4]}
2... b5 {[%clk 0:02:53.3]} 3. g3 {[%clk 0:02:50.2]} 3... Bb7 {[%clk 0:02:51.9]}
4. Bg2 {[%clk 0:02:51.1]} 4... d6 {[%clk 0:02:50]} 5. Nh3 {[%clk 0:02:48.4]}
5... Nf6 {[%clk 0:02:46.7]} 6. Nd2 {[%clk 0:02:46.1]} 6... e5 {[%clk 0:02:37.6]}
7. d5 {[%clk 0:02:43.3]} 7... c6 {[%clk 0:02:33.6]} 8. c4 {[%clk 0:02:40.6]}
8... bxc4 {[%clk 0:02:30.8]} 9. Nxc4 {[%clk 0:02:39.5]} 9... cxd5 {[%clk
0:02:31]} 10. exd5 {[%clk 0:02:38.9]} 10... Qc7 {[%clk 0:02:24.9]} 11. b3 {[%clk
0:02:28.9]} 11... Qc5 {[%clk 0:02:20.8]} 12. Be3 {[%clk 0:02:27.2]} 12... Qb4+
{[%clk 0:02:10.1]} 13. Ke2 {[%clk 0:02:23.9]} 13... Nbd7 {[%clk 0:02:03.4]} 14.
a3 {[%clk 0:02:13.8]} 14... Qb5 {[%clk 0:01:52.5]} 15. a4 {[%clk 0:02:13.5]}
15... Qb4 {[%clk 0:01:51.3]} 16. Qd3 {[%clk 0:02:04.2]} 16... Nc5 {[%clk
0:01:40.3]} 17. Bxc5 {[%clk 0:02:03.3]} 17... Qxc5 {[%clk 0:01:40.1]} 18. Rhd1
{[%clk 0:02:01.9]} 18... a5 {[%clk 0:01:31.9]} 19. Rac1 {[%clk 0:02:00.8]} 19...
Ba6 {[%clk 0:01:31.9]} 20. Ke1 {[%clk 0:01:45.3]} 20... Qb4+ {[%clk 0:01:29.3]}
21. Qd2 {[%clk 0:01:35.7]} 21... Qxb3 {[%clk 0:01:22.6]} 22. Nxa5 {[%clk
0:01:31.1]} 22... Qxa4 {[%clk 0:01:11.6]} 23. Ra1 {[%clk 0:01:25.3]} 23... Qb5
{[%clk 0:01:08.3]} 24. Bf1 {[%clk 0:01:20.4]} 24... Qc5 {[%clk 0:00:56.5]} 25.
Nc6 {[%clk 0:01:06.8]} 25... Ne4 {[%clk 0:00:40.6]} 26. Qb2 {[%clk 0:00:48.5]}
26... Rc8 {[%clk 0:00:07.4]} 27. Bxa6 {[%clk 0:00:38.2]} 27... Nc3 {[%clk
0:00:06.5]} 28. Bxc8 {[%clk 0:00:30.1]} 28... Nxd1 {[%clk 0:00:05.3]} 29. Rxd1
{[%clk 0:00:28.5]} 29... Qc4 {[%clk 0:00:03.3]} 30. Bf5 {[%clk 0:00:22]} 30...
g6 {[%clk 0:00:02.5]} 31. Qb8# {[%clk 0:00:21.1]} 1-0

[Event "Betsys MČR v online bleskovém šachu 2021"]
[Site "Chess.com"]
[Date "2021.04.17"]
[Round "13"]
[White "Dale00007"]
[Black "Terilka"]
[Result "0-1"]
[WhiteElo "1385"]
[BlackElo "1557"]
[TimeControl "180+1"]
[EndTime "11:10:52 PDT"]
[Termination "Uživatel Terilka zvítězil na čas"]

1. e4 {[%clk 0:03:00.9]} 1... e6 {[%clk 0:02:59.4]} 2. d4 {[%clk 0:02:58.2]}
2... d5 {[%clk 0:02:59.8]} 3. Nc3 {[%clk 0:02:56.6]} 3... Nf6 {[%clk 0:02:58.5]}
4. exd5 {[%clk 0:02:53.8]} 4... Nxd5 {[%clk 0:02:57.7]} 5. Nxd5 {[%clk
0:02:53.1]} 5... exd5 {[%clk 0:02:55.3]} 6. Nf3 {[%clk 0:02:46.6]} 6... Bd6
{[%clk 0:02:55.1]} 7. Bd3 {[%clk 0:02:35.6]} 7... Bg4 {[%clk 0:02:54.1]} 8. h3
{[%clk 0:02:33.4]} 8... Bh5 {[%clk 0:02:53]} 9. Qe2+ {[%clk 0:02:33]} 9... Qe7
{[%clk 0:02:44.4]} 10. Qxe7+ {[%clk 0:02:29.3]} 10... Bxe7 {[%clk 0:02:45.3]}
11. Be2 {[%clk 0:02:29.2]} 11... Nd7 {[%clk 0:02:43.1]} 12. O-O {[%clk 0:02:27]}
12... O-O-O {[%clk 0:02:39.2]} 13. Bf4 {[%clk 0:02:23.4]} 13... h6 {[%clk
0:02:33.8]} 14. Rfe1 {[%clk 0:02:22.4]} 14... Bf6 {[%clk 0:02:18.8]} 15. c3
{[%clk 0:02:01.9]} 15... g5 {[%clk 0:02:11.8]} 16. Bh2 {[%clk 0:01:57.3]} 16...
Bg6 {[%clk 0:02:11.5]} 17. Rac1 {[%clk 0:01:23.7]} 17... Bg7 {[%clk 0:02:02.9]}
18. Nd2 {[%clk 0:01:20.5]} 18... f5 {[%clk 0:01:58.6]} 19. g4 {[%clk 0:01:12.3]}
19... f4 {[%clk 0:01:53.2]} 20. Nf3 {[%clk 0:00:56.8]} 20... Nf6 {[%clk
0:01:39]} 21. Ne5 {[%clk 0:00:47.1]} 21... Be8 {[%clk 0:01:38.7]} 22. Kg2 {[%clk
0:00:37.1]} 22... Nd7 {[%clk 0:01:28.8]} 23. Nxd7 {[%clk 0:00:32.9]} 23... Rxd7
{[%clk 0:01:25]} 24. f3 {[%clk 0:00:32.2]} 24... Bg6 {[%clk 0:01:24.2]} 25. Bg1
{[%clk 0:00:26.8]} 25... Re8 {[%clk 0:01:16.5]} 26. Bf2 {[%clk 0:00:26.2]} 26...
Rde7 {[%clk 0:01:15.8]} 27. Kf1 {[%clk 0:00:26.3]} 27... c6 {[%clk 0:01:04.8]}
28. h4 {[%clk 0:00:25.7]} 28... Bf6 {[%clk 0:00:57.3]} 29. h5 {[%clk 0:00:24.5]}
29... Bh7 {[%clk 0:00:56.8]} 30. Bd1 {[%clk 0:00:22.2]} 30... Bd3+ {[%clk
0:00:49.7]} 31. Kg2 {[%clk 0:00:06.7]} 31... Rxe1 {[%clk 0:00:48.6]} 32. Bxe1
{[%clk 0:00:06.7]} 32... Rxe1 {[%clk 0:00:49.5]} 33. Kf2 {[%clk 0:00:05.1]}
33... Rf1+ {[%clk 0:00:48.5]} 34. Kg2 {[%clk 0:00:04.1]} 34... Kd7 {[%clk
0:00:45.3]} 0-1

[Event "Betsys MČR v online bleskovém šachu 2021"]
[Site "Chess.com"]
[Date "2021.04.17"]
[Round "13"]
[White "Sunnika"]
[Black "David_Mic"]
[Result "1-0"]
[WhiteElo "2284"]
[BlackElo "2009"]
[TimeControl "180+1"]
[EndTime "11:10:54 PDT"]
[Termination "Uživatel Sunnika zvítězil po vzdání soupeře"]

1. e4 {[%clk 0:03:00.9]} 1... c5 {[%clk 0:02:59.5]} 2. Nf3 {[%clk 0:03:01.4]}
2... Nc6 {[%clk 0:02:59.1]} 3. d4 {[%clk 0:03:01.8]} 3... cxd4 {[%clk
0:02:58.6]} 4. Nxd4 {[%clk 0:03:02.7]} 4... Nf6 {[%clk 0:02:58.3]} 5. Nc3 {[%clk
0:03:02]} 5... e5 {[%clk 0:02:58.3]} 6. Ndb5 {[%clk 0:03:01.8]} 6... d6 {[%clk
0:02:58]} 7. Bg5 {[%clk 0:03:00.9]} 7... a6 {[%clk 0:02:58]} 8. Na3 {[%clk
0:03:00.3]} 8... b5 {[%clk 0:02:57.7]} 9. Nd5 {[%clk 0:03:00.8]} 9... Qa5+
{[%clk 0:02:54.7]} 10. Bd2 {[%clk 0:02:59.7]} 10... Qd8 {[%clk 0:02:54.3]} 11.
c4 {[%clk 0:02:58.1]} 11... Nxe4 {[%clk 0:02:53.5]} 12. cxb5 {[%clk 0:02:55.5]}
12... Be6 {[%clk 0:02:53.5]} 13. Bc4 {[%clk 0:02:31.3]} 13... Nd4 {[%clk
0:02:38.1]} 14. O-O {[%clk 0:02:23.1]} 14... axb5 {[%clk 0:02:30.4]} 15. Nxb5
{[%clk 0:02:21.1]} 15... Bxd5 {[%clk 0:01:34.7]} 16. Bxd5 {[%clk 0:02:18.4]}
16... Nxb5 {[%clk 0:01:31.9]} 17. Bc6+ {[%clk 0:02:10.4]} 17... Ke7 {[%clk
0:01:30.1]} 18. Bxe4 {[%clk 0:02:07.1]} 18... Rc8 {[%clk 0:01:26.1]} 19. f4
{[%clk 0:01:49.5]} 19... f6 {[%clk 0:01:10.3]} 20. a4 {[%clk 0:01:33.8]} 20...
Qb6+ {[%clk 0:01:03.4]} 21. Kh1 {[%clk 0:01:33]} 21... Nd4 {[%clk 0:01:03.4]}
22. a5 {[%clk 0:01:19.3]} 22... Qa6 {[%clk 0:00:53.6]} 23. Bc3 {[%clk
0:00:57.2]} 23... Nb5 {[%clk 0:00:47.5]} 24. Bd3 {[%clk 0:00:50.3]} 24... Rc5
{[%clk 0:00:37.5]} 25. Bb4 {[%clk 0:00:48.5]} 25... Rd5 {[%clk 0:00:35.5]} 26.
fxe5 {[%clk 0:00:46.2]} 26... Rxe5 {[%clk 0:00:29.9]} 27. Rc1 {[%clk 0:00:42.4]}
27... g6 {[%clk 0:00:23]} 28. Qf3 {[%clk 0:00:39.9]} 28... f5 {[%clk 0:00:19.7]}
29. Rc7+ {[%clk 0:00:34.1]} 29... Kf6 {[%clk 0:00:16.7]} 30. Rc6 {[%clk
0:00:34.2]} 30... Qb7 {[%clk 0:00:10.5]} 31. a6 {[%clk 0:00:34.2]} 31... Qa7
{[%clk 0:00:07.4]} 32. Bxb5 {[%clk 0:00:29.9]} 32... Rxb5 {[%clk 0:00:07]} 33.
Bc3+ {[%clk 0:00:29.6]} 33... Kf7 {[%clk 0:00:04.8]} 34. Bxh8 {[%clk 0:00:28.5]}
1-0

[Event "Betsys MČR v online bleskovém šachu 2021"]
[Site "Chess.com"]
[Date "2021.04.17"]
[Round "13"]
[White "trosecnik"]
[Black "Daffac"]
[Result "0-1"]
[WhiteElo "1822"]
[BlackElo "2074"]
[TimeControl "180+1"]
[EndTime "11:10:56 PDT"]
[Termination "Uživatel Daffac zvítězil na čas"]

1. e4 {[%clk 0:02:57.5]} 1... c6 {[%clk 0:02:59.5]} 2. Nc3 {[%clk 0:02:56.3]}
2... d5 {[%clk 0:03:00.4]} 3. Nf3 {[%clk 0:02:56.9]} 3... Nf6 {[%clk 0:03:00.2]}
4. exd5 {[%clk 0:02:53.5]} 4... cxd5 {[%clk 0:03:01.1]} 5. d4 {[%clk 0:02:53.1]}
5... Nc6 {[%clk 0:03:01.5]} 6. Be2 {[%clk 0:02:48.9]} 6... g6 {[%clk 0:03:02]}
7. O-O {[%clk 0:02:49]} 7... Bg7 {[%clk 0:03:02.6]} 8. h3 {[%clk 0:02:47.5]}
8... O-O {[%clk 0:03:03]} 9. Be3 {[%clk 0:02:47.9]} 9... Bf5 {[%clk 0:03:01.4]}
10. Qd2 {[%clk 0:02:40.6]} 10... Ne4 {[%clk 0:03:01.4]} 11. Nxe4 {[%clk
0:02:40.9]} 11... Bxe4 {[%clk 0:02:59.8]} 12. c3 {[%clk 0:02:39.8]} 12... Re8
{[%clk 0:02:47.2]} 13. Ng5 {[%clk 0:02:22.7]} 13... Bf5 {[%clk 0:02:45.4]} 14.
Bd3 {[%clk 0:02:20]} 14... Bxd3 {[%clk 0:02:44]} 15. Qxd3 {[%clk 0:02:20.9]}
15... a6 {[%clk 0:02:33.9]} 16. f4 {[%clk 0:02:13.1]} 16... e6 {[%clk
0:02:27.4]} 17. Nf3 {[%clk 0:02:13.2]} 17... b5 {[%clk 0:02:26.4]} 18. Ne5
{[%clk 0:02:13]} 18... Qc7 {[%clk 0:02:15.8]} 19. Nxc6 {[%clk 0:01:53.5]} 19...
Qxc6 {[%clk 0:02:16.7]} 20. a3 {[%clk 0:01:53.7]} 20... a5 {[%clk 0:02:15.7]}
21. Rac1 {[%clk 0:01:41.9]} 21... Reb8 {[%clk 0:02:14.8]} 22. g4 {[%clk
0:01:36.2]} 22... Qc4 {[%clk 0:02:14.7]} 23. Qd2 {[%clk 0:01:05.6]} 23... f5
{[%clk 0:02:09.6]} 24. gxf5 {[%clk 0:01:03.9]} 24... exf5 {[%clk 0:02:07]} 25.
Rfe1 {[%clk 0:01:00]} 25... Re8 {[%clk 0:02:07]} 26. Bf2 {[%clk 0:00:56.4]}
26... Re4 {[%clk 0:02:07.2]} 27. Rxe4 {[%clk 0:00:41.7]} 27... fxe4 {[%clk
0:02:08.1]} 28. Be3 {[%clk 0:00:41.7]} 28... Rf8 {[%clk 0:01:59.9]} 29. Kh2
{[%clk 0:00:38.5]} 29... Bh6 {[%clk 0:01:59.8]} 30. Qf2 {[%clk 0:00:18.2]} 30...
Qc7 {[%clk 0:01:48.4]} 31. Rf1 {[%clk 0:00:17.7]} 31... g5 {[%clk 0:01:36.8]}
32. Kg3 {[%clk 0:00:16.4]} 32... Rf5 {[%clk 0:01:30.8]} 33. Kg4 {[%clk
0:00:09.4]} 33... Qf7 {[%clk 0:01:25.8]} 34. Kg3 {[%clk 0:00:04.5]} 34... gxf4+
{[%clk 0:01:20.3]} 35. Bxf4 {[%clk 0:00:04.6]} 35... Bxf4+ {[%clk 0:01:20.4]}
36. Qxf4 {[%clk 0:00:04.8]} 36... Rxf4 {[%clk 0:01:20.5]} 37. Rxf4 {[%clk
0:00:05.7]} 37... Qe7 {[%clk 0:01:16.4]} 38. Rg4+ {[%clk 0:00:05.7]} 38... Kf8
{[%clk 0:01:16.4]} 39. Rf4+ {[%clk 0:00:05.9]} 39... Ke8 {[%clk 0:01:16.4]} 40.
h4 {[%clk 0:00:04.8]} 40... Kd7 {[%clk 0:01:14.8]} 41. Kg4 {[%clk 0:00:04.7]}
41... Kc6 {[%clk 0:01:12.5]} 42. Rf5 {[%clk 0:00:05]} 42... b4 {[%clk
0:01:09.4]} 43. axb4 {[%clk 0:00:03.5]} 43... axb4 {[%clk 0:01:10.3]} 44. h5
{[%clk 0:00:01.5]} 44... bxc3 {[%clk 0:01:06.5]} 45. bxc3 {[%clk 0:00:02.4]}
45... Kb5 {[%clk 0:00:59.1]} 46. Rxd5+ {[%clk 0:00:01.2]} 46... Kc4 {[%clk
0:00:57.2]} 0-1

[Event "Betsys MČR v online bleskovém šachu 2021"]
[Site "Chess.com"]
[Date "2021.04.17"]
[Round "13"]
[White "starypomalymuz"]
[Black "indebol"]
[Result "1-0"]
[WhiteElo "1748"]
[BlackElo "1543"]
[TimeControl "180+1"]
[EndTime "11:10:56 PDT"]
[Termination "Uživatel starypomalymuz zvítězil matem"]

1. e4 {[%clk 0:03:00.9]} 1... c5 {[%clk 0:02:58.8]} 2. Nf3 {[%clk 0:02:58.8]}
2... Nc6 {[%clk 0:02:59.3]} 3. d4 {[%clk 0:02:58.7]} 3... cxd4 {[%clk
0:02:59.3]} 4. Nxd4 {[%clk 0:02:59.1]} 4... d6 {[%clk 0:03:00.2]} 5. c4 {[%clk
0:02:56.5]} 5... a6 {[%clk 0:02:59.2]} 6. Be2 {[%clk 0:02:54.1]} 6... Nf6 {[%clk
0:02:59.2]} 7. Nc3 {[%clk 0:02:52.9]} 7... e6 {[%clk 0:02:58.6]} 8. O-O {[%clk
0:02:51.7]} 8... Be7 {[%clk 0:02:58.9]} 9. Be3 {[%clk 0:02:48.5]} 9... O-O
{[%clk 0:02:58.7]} 10. f4 {[%clk 0:02:44.1]} 10... Qc7 {[%clk 0:02:38.2]} 11.
Bf3 {[%clk 0:02:42.9]} 11... Bd7 {[%clk 0:02:29.4]} 12. Rc1 {[%clk 0:02:42.2]}
12... Rac8 {[%clk 0:02:20.8]} 13. a3 {[%clk 0:02:39.3]} 13... h6 {[%clk
0:02:18.1]} 14. Qd3 {[%clk 0:02:32.4]} 14... Nxd4 {[%clk 0:02:17.6]} 15. Bxd4
{[%clk 0:02:24.6]} 15... Rfd8 {[%clk 0:02:15.1]} 16. Ne2 {[%clk 0:02:07.5]}
16... Bc6 {[%clk 0:02:13]} 17. e5 {[%clk 0:01:58.2]} 17... Bxf3 {[%clk
0:01:55.1]} 18. Qxf3 {[%clk 0:01:52.5]} 18... dxe5 {[%clk 0:01:45.8]} 19. fxe5
{[%clk 0:01:33.4]} 19... Nd7 {[%clk 0:01:41.3]} 20. Qxf7+ {[%clk 0:01:30.4]}
20... Kh8 {[%clk 0:01:36.2]} 21. Qxe7 {[%clk 0:01:27.8]} 21... Qc6 {[%clk
0:00:53.4]} 22. Qd6 {[%clk 0:01:14.8]} 22... Qe4 {[%clk 0:00:49.9]} 23. Qxe6
{[%clk 0:01:07.9]} 23... Qxe2 {[%clk 0:00:47.6]} 24. Rf7 {[%clk 0:00:41.4]}
24... Nf8 {[%clk 0:00:40]} 25. Qb6 {[%clk 0:00:27.4]} 25... Qd3 {[%clk
0:00:21.7]} 26. Bf2 {[%clk 0:00:24.7]} 26... Qd2 {[%clk 0:00:19.8]} 27. Rf1
{[%clk 0:00:23.8]} 27... Nd7 {[%clk 0:00:14.4]} 28. Qxb7 {[%clk 0:00:21.3]}
28... Nxe5 {[%clk 0:00:13.9]} 29. Rxg7 {[%clk 0:00:17.7]} 29... Rf8 {[%clk
0:00:08.2]} 30. Rh7+ {[%clk 0:00:16.8]} 30... Kg8 {[%clk 0:00:07.9]} 31. Qg7#
{[%clk 0:00:17.3]} 1-0

[Event "Betsys MČR v online bleskovém šachu 2021"]
[Site "Chess.com"]
[Date "2021.04.17"]
[Round "13"]
[White "RadosC"]
[Black "xPsylocke"]
[Result "1-0"]
[WhiteElo "2492"]
[BlackElo "2259"]
[TimeControl "180+1"]
[EndTime "11:10:57 PDT"]
[Termination "Uživatel RadosC zvítězil po vzdání soupeře"]

1. e4 {[%clk 0:03:00.9]} 1... e5 {[%clk 0:02:54.7]} 2. Nf3 {[%clk 0:03:00.7]}
2... Nc6 {[%clk 0:02:49.5]} 3. Bb5 {[%clk 0:03:00.2]} 3... a6 {[%clk 0:02:48.8]}
4. Ba4 {[%clk 0:02:59.8]} 4... d6 {[%clk 0:02:47.8]} 5. O-O {[%clk 0:02:58.6]}
5... Bd7 {[%clk 0:02:41.8]} 6. c3 {[%clk 0:02:58.5]} 6... g6 {[%clk 0:02:41.1]}
7. d4 {[%clk 0:02:58.2]} 7... Bg7 {[%clk 0:02:41.2]} 8. Be3 {[%clk 0:02:54.3]}
8... Nf6 {[%clk 0:02:38.2]} 9. Nbd2 {[%clk 0:02:53.7]} 9... O-O {[%clk
0:02:37.4]} 10. h3 {[%clk 0:02:53.2]} 10... Qe8 {[%clk 0:02:34.4]} 11. Bc2
{[%clk 0:02:49.7]} 11... h6 {[%clk 0:02:28.4]} 12. Re1 {[%clk 0:02:41.3]} 12...
Nd8 {[%clk 0:02:26.5]} 13. Nf1 {[%clk 0:02:36.6]} 13... Nh5 {[%clk 0:02:17.3]}
14. dxe5 {[%clk 0:02:29.9]} 14... dxe5 {[%clk 0:02:16.1]} 15. Bb3 {[%clk
0:02:28]} 15... Ne6 {[%clk 0:02:12.7]} 16. N1h2 {[%clk 0:02:22.9]} 16... Rd8
{[%clk 0:02:03.9]} 17. Qc2 {[%clk 0:02:19.4]} 17... Nef4 {[%clk 0:01:53.9]} 18.
Rad1 {[%clk 0:02:13.4]} 18... Qe7 {[%clk 0:01:35.8]} 19. Ng4 {[%clk 0:02:07.2]}
19... Bxg4 {[%clk 0:01:28.9]} 20. hxg4 {[%clk 0:02:05.6]} 20... Nf6 {[%clk
0:01:28.7]} 21. Bxf4 {[%clk 0:01:59.1]} 21... exf4 {[%clk 0:01:28]} 22. Rxd8
{[%clk 0:01:50.4]} 22... Rxd8 {[%clk 0:01:26.9]} 23. g5 {[%clk 0:01:50.1]} 23...
Ng4 {[%clk 0:01:18.9]} 24. gxh6 {[%clk 0:01:47.1]} 24... Bxh6 {[%clk 0:01:19.8]}
25. e5 {[%clk 0:01:43.8]} 25... Bg7 {[%clk 0:01:13]} 26. Qxg6 {[%clk 0:01:40.8]}
26... Nh6 {[%clk 0:00:48.3]} 27. Ng5 {[%clk 0:01:35.5]} 27... c5 {[%clk
0:00:31.6]} 28. Qh5 {[%clk 0:00:49.5]} 28... b5 {[%clk 0:00:24.5]} 29. e6 {[%clk
0:00:45.6]} 29... f6 {[%clk 0:00:20.3]} 30. Nf7 {[%clk 0:00:44.9]} 30... c4
{[%clk 0:00:08.2]} 31. Nxh6+ {[%clk 0:00:36.5]} 31... Bxh6 {[%clk 0:00:07.9]}
32. Qxh6 {[%clk 0:00:35.7]} 32... Qg7 {[%clk 0:00:08.1]} 33. Qxg7+ {[%clk
0:00:34.9]} 33... Kxg7 {[%clk 0:00:09]} 34. Bc2 {[%clk 0:00:34.8]} 34... Re8
{[%clk 0:00:08.4]} 35. Bf5 {[%clk 0:00:32]} 35... Kf8 {[%clk 0:00:08.6]} 36. Rd1
{[%clk 0:00:32]} 36... Re7 {[%clk 0:00:07.2]} 37. Kf1 {[%clk 0:00:30.9]} 1-0